fUST/lending_fUST_20250627
["ID","MTS","AMOUNT","RATE_DAILY","PERIOD"]
[368036409,1751001054964,-530.34,0.00021369,2]
[368036410,1751001054973,-151.0,0.00021369,2]
[368036411,1751001054982,-151.0,0.00021369,2]
[368036412,1751001054992,-801.9,0.00021369,2]
[368036413,1751001055001,-460.0,0.00021369,2]
[368036414,1751001055011,-551.24,0.00021369,2]
[368036415,1751001055020,-569.52,0.00021369,2]
[368036416,1751001055030,-460.0,0.00021369,2]
[368036417,1751001055040,-594.68418213,0.00021369,2]
[368036418,1751001055050,-482.45,0.00021369,2]
[368036419,1751001055059,-2047.01,0.00021369,2]
[368036420,1751001055068,-560.03,0.00021369,2]
[368036421,1751001055078,-995.48,0.00021369,2]
[368036422,1751001055087,-460.0,0.00021369,2]
[368036423,1751001055096,-460.0,0.00021369,2]
[368036424,1751001055107,-565.35,0.00021369,2]
[368036425,1751001055116,-527.16,0.00021369,2]
[368036426,1751001055126,-610.08,0.00021369,2]
[368036427,1751001055137,-460.0,0.00021369,2]
[368036428,1751001055147,-460.0,0.00021369,2]
[368036429,1751001055157,-2134.04,0.00021369,2]
[368036430,1751001055166,-2845.29,0.00021369,2]
[368036431,1751001055175,-460.0,0.00021369,2]
[368036432,1751001055185,-460.0,0.00021369,2]
[368036433,1751001055194,-3004.48,0.00021369,2]
[368036434,1751001055204,-332.42416851,0.00021369,2]
[368036435,1751001055214,-460.0,0.00021369,2]
[368036436,1751001055224,-614.67,0.00021369,2]
[368036437,1751001055234,-2894.9,0.00021369,2]
[368036438,1751001055243,-460.0,0.00021369,2]
[368036439,1751001055253,-460.0,0.00021369,2]
[368036440,1751001055263,-886.62,0.00021369,2]
[368036441,1751001055273,-1050.51,0.00021369,2]
[368036442,1751001055283,-1906.47,0.00021369,2]
[368036443,1751001055294,-1507.3,0.00021369,2]
[368036444,1751001055305,-460.0,0.00021369,2]
[368036445,1751001055314,-460.0,0.00021369,2]
[368036446,1751001055325,-460.0,0.00021369,2]
[368036447,1751001055335,-819.23,0.00021369,2]
[368036448,1751001055344,-5474.85,0.00021369,2]
[368036449,1751001055354,-460.0,0.00021369,2]
[368036450,1751001055363,-764.31,0.00021369,2]
[368036451,1751001055373,-167.32272818,0.00021369,2]
[368036452,1751001055383,-3659.13,0.00021369,2]
[368036453,1751001055393,-460.0,0.00021369,2]
[368036454,1751001055402,-574.58,0.00021369,2]
[368036455,1751001055411,-2974.23,0.00021369,2]
[368036456,1751001055422,-460.0,0.00021369,2]
[368036457,1751001055431,-927.68,0.00021369,2]
[368036458,1751001055440,-460.0,0.00021369,2]
[368036459,1751001055457,-462.4,0.00021369,2]
[368036460,1751001055466,-1972.61,0.00021369,2]
[368036461,1751001055591,-460.0,0.00021369,2]
[368036462,1751001055602,-876.56,0.00021369,2]
[368036463,1751001055611,-640.5,0.00021369,2]
[368036464,1751001055621,-1966.9,0.00021369,2]
[368036465,1751001055630,-466.64,0.00021369,2]
[368036466,1751001055640,-460.0,0.00021369,2]
[368036467,1751001055649,-2094.92,0.00021369,2]
[368036468,1751001055658,-808.1,0.00021369,2]
[368036469,1751001055669,-460.0,0.00021369,2]
[368036470,1751001055680,-1198.54,0.00021369,2]
[368036471,1751001055690,-669.65,0.00021369,2]
[368036472,1751001055699,-2475.01,0.00021369,2]
[368036473,1751001055709,-2609.67,0.00021369,2]
[368036474,1751001055718,-460.0,0.00021369,2]
[368036475,1751001055728,-774.49,0.00021369,2]
[368036476,1751001055738,-474.92,0.00021369,2]
[368036477,1751001055747,-1000.96,0.00021369,2]
[368036478,1751001055757,-460.0,0.00021369,2]
[368036479,1751001055767,-1233.44,0.00021369,2]
[368036480,1751001055776,-150.0,0.00021369,2]
[368036481,1751001055786,-150.0,0.00021369,2]
[368036482,1751001055796,-2000.0,0.00021399,2]
[368036483,1751001055805,-151.0,0.000214,4]
[368036484,1751001055815,-168.0,0.00021407,2]
[368036485,1751001055824,-215.0738,0.00021407,2]
[368036486,1751001055834,-8370.50534325,0.00021417,5]
[368036487,1751001055843,-150.136,0.0002146,2]
[368036488,1751001055853,-150.0,0.0002146,2]
[368036489,1751001055863,-246.699,0.0002146,2]
[368036490,1751001055872,-150.173,0.0002146,2]
[368036491,1751001055882,-966.0,0.0002146,2]
[368036492,1751001055891,-654.0,0.0002146,2]
[368036493,1751001055901,-2161.0,0.0002146,2]
[368036494,1751001055911,-2108.73060914,0.00021492,2]
[368036495,1751001055920,-159.959375,0.000215,2]
[368036496,1751001055929,-500.0,0.000215,2]
[368036497,1751001055939,-1100.001432,0.0002156,4]
[368036498,1751001055949,-8370.50534325,0.0002159,5]
[368036499,1751001055959,-151.546194,0.0002159,2]
[368036500,1751001055968,-151.0,0.0002159,2]
[368036501,1751001055978,-500.0,0.000216,2]
[368036502,1751001055987,-1000.0,0.00021616,2]
[368036503,1751001055996,-658.58637463,0.00021616,2]
[368036504,1751001056006,-151.0,0.00021634,2]
[368036505,1751001056015,-151.0,0.00021634,2]
[368036506,1751001056024,-213.114312,0.00021634,2]
[368036507,1751001056034,-213.114312,0.00021634,2]
[368036508,1751001056043,-253.878886,0.00021634,2]
[368036509,1751001056052,-12500.0,0.00021634,2]
[368036510,1751001056062,-12500.0,0.00021643,2]
[368036511,1751001056072,-460.0,0.00021643,2]
[368036512,1751001056081,-151.0,0.00021643,2]
[368036513,1751001056091,-151.0,0.00021643,2]
[368036514,1751001056101,-151.0,0.00021643,2]
[368036515,1751001056110,-460.0,0.00021643,2]
[368036516,1751001056119,-404.9,0.00021643,2]
[368036517,1751001056145,-582.4,0.00021643,2]
[368036518,1751001056155,-998.79,0.00021643,2]
[368036519,1751001056165,-460.0,0.00021643,2]
[368036520,1751001056174,-460.0,0.00021643,2]
[368036521,1751001056184,-517.34,0.00021643,2]
[368036522,1751001056194,-460.0,0.00021643,2]
[368036523,1751001056203,-1076.21,0.00021643,2]
[368036524,1751001056213,-460.0,0.00021643,2]
[368036525,1751001056223,-151.0,0.00021643,2]
[368036526,1751001056232,-460.0,0.00021643,2]
[368036527,1751001056242,-530.34,0.00021643,2]
[368036528,1751001056251,-151.0,0.00021643,2]
[368036529,1751001056261,-151.0,0.00021643,2]
[368036530,1751001056271,-177.404718,0.00021643,2]
[368036531,1751001056281,-151.0,0.00021643,2]
[368036532,1751001056290,-801.9,0.00021643,2]
[368036533,1751001056302,-460.0,0.00021643,2]
[368036534,1751001056312,-551.24,0.00021643,2]
[368036535,1751001056322,-569.52,0.00021643,2]
[368036536,1751001056331,-151.0,0.00021643,2]
[368036537,1751001056342,-151.0,0.00021643,2]
[368036538,1751001056352,-460.0,0.00021643,2]
[368036539,1751001056362,-482.45,0.00021643,2]
[368036540,1751001056371,-2047.01,0.00021643,2]
[368036541,1751001056383,-560.03,0.00021643,2]
[368036542,1751001056392,-995.48,0.00021643,2]
[368036543,1751001056402,-460.0,0.00021643,2]
[368036544,1751001056411,-325.34502338,0.00021643,2]
[368036545,1751001056421,-565.35,0.00021643,2]
[368036546,1751001056431,-527.16,0.00021643,2]
[368036547,1751001056440,-610.08,0.00021643,2]
[368036548,1751001056450,-236.565972,0.00021643,2]
[368036549,1751001056459,-151.0,0.00021643,2]
[368036550,1751001056468,-582.281415,0.00021643,2]
[368036551,1751001056478,-582.281415,0.00021643,2]
[368036552,1751001056487,-460.0,0.00021643,2]
[368036553,1751001056498,-547.58,0.00021643,2]
[368036554,1751001056508,-2134.04,0.00021643,2]
[368036555,1751001056517,-2845.29,0.00021643,2]
[368036556,1751001056526,-151.0,0.00021643,2]
[368036557,1751001056535,-460.0,0.00021643,2]
[368036558,1751001056544,-151.0,0.00021643,2]
[368036559,1751001056554,-460.0,0.00021643,2]
[368036560,1751001056564,-3004.48,0.00021643,2]
[368036561,1751001056573,-460.0,0.00021643,2]
[368036562,1751001056583,-614.67,0.00021643,2]
[368036563,1751001056592,-2894.9,0.00021643,2]
[368036564,1751001056602,-460.0,0.00021643,2]
[368036565,1751001056611,-460.0,0.00021643,2]
[368036566,1751001056622,-886.62,0.00021643,2]
[368036567,1751001056632,-1050.51,0.00021643,2]
[368036568,1751001056641,-1906.47,0.00021643,2]
[368036569,1751001056651,-206.173734,0.00021643,2]
[368036570,1751001056661,-1507.3,0.00021643,2]
[368036571,1751001056671,-206.173734,0.00021643,2]
[368036572,1751001056680,-460.0,0.00021643,2]
[368036573,1751001056690,-460.0,0.00021643,2]
[368036574,1751001056699,-460.0,0.00021643,2]
[368036575,1751001056709,-819.23,0.00021643,2]
[368036576,1751001056719,-295.306328,0.00021643,2]
[368036577,1751001056728,-5474.85,0.00021643,2]
[368036578,1751001056738,-460.0,0.00021643,2]
[368036579,1751001056747,-295.306328,0.00021643,2]
[368036580,1751001056758,-764.31,0.00021643,2]
[368036581,1751001056768,-3659.13,0.00021643,2]
[368036582,1751001056778,-151.0,0.00021643,2]
[368036583,1751001056787,-492.17239588,0.00021643,2]
[368036584,1751001056797,-574.58,0.00021643,2]
[368036585,1751001056807,-151.0,0.00021643,2]
[368036586,1751001056816,-2974.23,0.00021643,2]
[368036587,1751001056826,-460.0,0.00021643,2]
[368036588,1751001056835,-927.68,0.00021643,2]
[368036589,1751001056845,-460.0,0.00021643,2]
[368036590,1751001056854,-462.4,0.00021643,2]
[368036591,1751001056863,-255.425041,0.00021643,2]
[368036592,1751001056873,-1972.61,0.00021643,2]
[368036593,1751001056883,-255.425041,0.00021643,2]
[368036594,1751001056892,-460.0,0.00021643,2]
[368036595,1751001056902,-876.56,0.00021643,2]
[368036596,1751001056912,-640.5,0.00021643,2]
[368036597,1751001056922,-1966.9,0.00021643,2]
[368036598,1751001056931,-466.64,0.00021643,2]
[368036599,1751001056940,-460.0,0.00021643,2]
[368036600,1751001056949,-2094.92,0.00021643,2]
[368036601,1751001056959,-808.1,0.00021643,2]
[368036602,1751001056968,-460.0,0.00021643,2]
[368036603,1751001056977,-1198.54,0.00021643,2]
[368036604,1751001056987,-669.65,0.00021643,2]
[368036605,1751001056996,-2475.01,0.00021643,2]
[368036606,1751001057006,-2609.67,0.00021643,2]
[368036607,1751001057015,-460.0,0.00021643,2]
[368036608,1751001057025,-151.0,0.00021643,2]
[368036609,1751001057035,-774.49,0.00021643,2]
[368036610,1751001057044,-474.92,0.00021643,2]
[368036611,1751001057053,-1000.96,0.00021643,2]
[368036612,1751001057063,-486.95079012,0.00021643,2]
[368036613,1751001057073,-1233.44,0.00021643,2]
[368036614,1751001057082,-155.0107038,0.00021671,2]
[368036615,1751001057092,-174.38704177,0.00021671,2]
[368036616,1751001057101,-5000.0,0.00021682,2]
[368036617,1751001057110,-151.0,0.000217,4]
[368036618,1751001057120,-8370.50534325,0.00021762,5]
[368036619,1751001057129,-2681.4967068,0.0002178,2]
[368036620,1751001057138,-151.0,0.000218,3]
[368036621,1751001057148,-2108.73060917,0.00021801,2]
[368036622,1751001057157,-9428.16946041,0.00021817,2]
[368036623,1751001057167,-153.0,0.00021854,2]
[368036624,1751001057176,-153.0,0.00021854,2]
[368036625,1751001057185,-153.0,0.00021854,2]
[368036626,1751001057195,-153.0,0.00021854,2]
[368036627,1751001057204,-153.0,0.00021854,2]
[368036628,1751001057213,-151.0,0.000219,2]
[368036629,1751001057223,-151.0,0.000219,2]
[368036630,1751001057232,-151.0,0.000219,2]
[368036631,1751001057241,-151.0,0.000219,2]
[368036632,1751001057251,-151.0,0.000219,2]
[368036633,1751001057260,-151.0,0.000219,2]
[368036634,1751001057270,-428.24547751,0.000219,2]
[368036635,1751001057279,-200.0,0.000219,3]
[368036636,1751001057289,-151.0,0.00021917,2]
[368036637,1751001057299,-203.79692233,0.00021917,2]
[368036638,1751001057308,-420.04191384,0.00021917,2]
[368036639,1751001057318,-460.0,0.00021917,2]
[368036640,1751001057327,-460.0,0.00021917,2]
[368036641,1751001057336,-460.0,0.00021917,2]
[368036642,1751001057346,-460.0,0.00021917,2]
[368036643,1751001057355,-414.67345409,0.00021917,2]
[368036644,1751001057365,-460.0,0.00021917,2]
[368036645,1751001057375,-151.0,0.00021917,2]
[368036646,1751001057384,-151.0,0.00021917,2]
[368036647,1751001057394,-151.0,0.00021917,2]
[368036648,1751001057403,-582.4,0.00021917,2]
[368036649,1751001057413,-151.0,0.00021917,2]
[368036650,1751001057422,-998.79,0.00021917,2]
[368036651,1751001057432,-460.0,0.00021917,2]
[368036652,1751001057441,-460.0,0.00021917,2]
[368036653,1751001057450,-517.34,0.00021917,2]
[368036654,1751001057459,-234.823165,0.00021917,2]
[368036655,1751001057469,-460.0,0.00021917,2]
[368036656,1751001057478,-1076.21,0.00021917,2]
[368036657,1751001057487,-151.0,0.00021917,2]
[368036658,1751001057497,-155.334899,0.00021917,2]
[368036659,1751001057506,-151.0,0.00021917,2]
[368036660,1751001057515,-185.967713,0.00021917,2]
[368036661,1751001057525,-185.967713,0.00021917,2]
[368036662,1751001057534,-1455.972287,0.00021917,2]
[368036663,1751001057544,-460.0,0.00021917,2]
[368036664,1751001057553,-530.34,0.00021917,2]
[368036665,1751001057563,-151.0,0.00021917,2]
[368036666,1751001057572,-151.0,0.00021917,2]
[368036667,1751001057582,-801.9,0.00021917,2]
[368036668,1751001057591,-151.0,0.00021917,2]
[368036669,1751001057600,-151.0,0.00021917,2]
[368036670,1751001057610,-213.114312,0.00021917,2]
[368036671,1751001057619,-213.114312,0.00021917,2]
[368036672,1751001057628,-460.0,0.00021917,2]
[368036673,1751001057638,-551.24,0.00021917,2]
[368036674,1751001057648,-569.52,0.00021917,2]
[368036675,1751001057657,-460.0,0.00021917,2]
[368036676,1751001057666,-482.45,0.00021917,2]
[368036677,1751001057676,-2047.01,0.00021917,2]
[368036678,1751001057685,-560.03,0.00021917,2]
[368036679,1751001057694,-995.48,0.00021917,2]
[368036680,1751001057704,-460.0,0.00021917,2]
[368036681,1751001057713,-565.35,0.00021917,2]
[368036682,1751001057722,-527.16,0.00021917,2]
[368036683,1751001057731,-610.08,0.00021917,2]
[368036684,1751001057740,-460.0,0.00021917,2]
[368036685,1751001057749,-547.03226586,0.00021917,2]
[368036686,1751001057758,-460.0,0.00021917,2]
[368036687,1751001057767,-2134.04,0.00021917,2]
[368036688,1751001057776,-2845.29,0.00021917,2]
[368036689,1751001057786,-460.0,0.00021917,2]
[368036690,1751001057795,-460.0,0.00021917,2]
[368036691,1751001057804,-3004.48,0.00021917,2]
[368036692,1751001057813,-460.0,0.00021917,2]
[368036693,1751001057823,-614.67,0.00021917,2]
[368036694,1751001057832,-2894.9,0.00021917,2]
[368036695,1751001057842,-460.0,0.00021917,2]
[368036696,1751001057851,-460.0,0.00021917,2]
[368036697,1751001057860,-886.62,0.00021917,2]
[368036698,1751001057869,-1050.51,0.00021917,2]
[368036699,1751001057879,-1906.47,0.00021917,2]
[368036700,1751001057888,-1507.3,0.00021917,2]
[368036701,1751001057897,-460.0,0.00021917,2]
[368036702,1751001057906,-460.0,0.00021917,2]
[368036703,1751001057916,-460.0,0.00021917,2]
[368036704,1751001057925,-819.23,0.00021917,2]
[368036705,1751001057934,-5474.85,0.00021917,2]
[368036706,1751001057943,-460.0,0.00021917,2]
[368036707,1751001057952,-764.31,0.00021917,2]
[368036708,1751001057961,-3659.13,0.00021917,2]
[368036709,1751001057971,-574.58,0.00021917,2]
[368036710,1751001057980,-2974.23,0.00021917,2]
[368036711,1751001057989,-460.0,0.00021917,2]
[368036712,1751001057999,-927.68,0.00021917,2]
[368036713,1751001058008,-587.58906329,0.00021917,2]
[368036714,1751001058017,-460.0,0.00021917,2]
[368036715,1751001058027,-462.4,0.00021917,2]
[368036716,1751001058036,-1972.61,0.00021917,2]
[368036717,1751001058045,-460.0,0.00021917,2]
[368036718,1751001058055,-876.56,0.00021917,2]
[368036719,1751001058065,-640.5,0.00021917,2]
[368036720,1751001058074,-1966.9,0.00021917,2]
[368036721,1751001058084,-466.64,0.00021917,2]
[368036722,1751001058093,-165.43,0.00021917,2]
[368036723,1751001058102,-2094.92,0.00021917,2]
[368036724,1751001058111,-808.1,0.00021917,2]
[368036725,1751001058121,-460.0,0.00021917,2]
[368036726,1751001058130,-500.0,0.00021917,2]
[368036727,1751001058246,-1198.54,0.00021917,2]
[368036728,1751001058257,-669.65,0.00021917,2]
[368036729,1751001058267,-2475.01,0.00021917,2]
[368036730,1751001058276,-2609.67,0.00021917,2]
[368036731,1751001058287,-460.0,0.00021917,2]
[368036732,1751001058298,-774.49,0.00021917,2]
[368036733,1751001058311,-474.92,0.00021917,2]
[368036734,1751001058321,-1000.96,0.00021917,2]
[368036735,1751001058330,-1233.44,0.00021917,2]
[368036736,1751001058339,-151.0,0.00021918,2]
[368036737,1751001058349,-151.0,0.00021918,2]
[368036738,1751001058358,-166.0,0.00021918,2]
[368036739,1751001058367,-8370.50534325,0.00021934,6]
[368036740,1751001058377,-295.306328,0.00021935,7]
[368036741,1751001058387,-295.306328,0.00021935,7]
[368036742,1751001058397,-151.0,0.00021935,7]
[368036743,1751001058407,-151.0,0.00021935,7]
[368036744,1751001058416,-255.425041,0.00021935,7]
[368036745,1751001058426,-255.425041,0.00021935,7]
[368036746,1751001058436,-306.0,0.00021945,2]
[368036747,1751001058445,-154.4082959,0.00021945,2]
[368036748,1751001058454,-1780.16948974,0.00021947,2]
[368036749,1751001058463,-155.0107038,0.00021973,2]
[368036750,1751001058473,-198.78382991,0.00021973,2]
[368036751,1751001058482,-174.38704177,0.00021973,2]
[368036752,1751001058491,-500.0,0.00021973,2]
[368036753,1751001058500,-500.0,0.00021973,2]
[368036754,1751001058509,-500.0,0.00021973,2]
[368036755,1751001058519,-500.0,0.00021973,2]
[368036756,1751001058528,-500.0,0.00021973,2]
[368036757,1751001058537,-500.0,0.00021973,2]
[368036758,1751001058546,-500.0,0.00021973,2]
[368036759,1751001058555,-500.0,0.00021973,2]
[368036760,1751001058565,-500.0,0.00021973,2]
[368036761,1751001058574,-500.0,0.00021973,2]
[368036762,1751001058583,-500.0,0.00021973,2]
[368036763,1751001058592,-500.0,0.00021973,2]
[368036764,1751001058602,-500.0,0.00021973,2]
[368036765,1751001058611,-500.0,0.00021973,2]
[368036766,1751001058621,-500.56052383,0.00021973,2]
[368036767,1751001058630,-610.78167965,0.00021973,2]
[368036768,1751001058641,-500.0,0.00021973,2]
[368036769,1751001058651,-500.47190355,0.00021973,2]
[368036770,1751001058660,-200.73813669,0.00021973,2]
[368036771,1751001058670,-500.0,0.00021973,2]
[368036772,1751001058679,-500.0,0.00021973,2]
[368036773,1751001058689,-180.55111141,0.00021973,2]
[368036774,1751001058699,-500.0,0.00021973,2]
[368036775,1751001058708,-500.0,0.00021973,2]
[368036776,1751001058718,-500.0,0.00021973,2]
[368036777,1751001058727,-600.0,0.00021973,2]
[368036778,1751001058736,-500.0,0.00021973,2]
[368036779,1751001058745,-500.0,0.00021973,2]
[368036780,1751001058754,-500.0,0.00021973,2]
[368036781,1751001058763,-544.82622425,0.00021973,2]
[368036782,1751001058772,-500.0,0.00021973,2]
[368036783,1751001058781,-500.0,0.00021973,2]
[368036784,1751001058791,-500.0,0.00021973,2]
[368036785,1751001058800,-500.0,0.00021973,2]
[368036786,1751001058810,-500.0,0.00021973,2]
[368036787,1751001058819,-500.0,0.00021973,2]
[368036788,1751001058828,-500.0,0.00021973,2]
[368036789,1751001058837,-500.0,0.00021973,2]
[368036790,1751001058846,-500.0,0.00021973,2]
[368036791,1751001058856,-500.0,0.00021973,2]
[368036792,1751001058865,-500.0,0.00021973,2]
[368036793,1751001058875,-500.0,0.00021973,2]
[368036794,1751001058884,-500.0,0.00021973,2]
[368036795,1751001058893,-500.0,0.00021973,2]
[368036796,1751001058903,-500.0,0.00021973,2]
[368036797,1751001058912,-500.0,0.00021973,2]
[368036798,1751001058922,-500.0,0.00021973,2]
[368036799,1751001058931,-500.0,0.00021973,2]
[368036800,1751001058941,-500.0,0.00021973,2]
[368036801,1751001058950,-500.0,0.00021973,2]
[368036802,1751001058959,-500.0,0.00021973,2]
[368036803,1751001058968,-500.0,0.00021973,2]
[368036804,1751001058978,-586.43269723,0.00021973,2]
[368036805,1751001058987,-500.0,0.00021973,2]
[368036806,1751001058997,-500.0,0.00021973,2]
[368036807,1751001059006,-500.0,0.00021973,2]
[368036808,1751001059015,-165.163626,0.0002198,5]
[368036809,1751001059025,-151.0,0.00021987,7]
[368036810,1751001059034,-151.0,0.00021987,7]
[368036811,1751001059044,-151.0,0.0002199,7]
[368036812,1751001059053,-151.0,0.0002199,7]
[368036813,1751001059063,-151.0,0.0002199,7]
[368036814,1751001059072,-230.063576,0.0002199,7]
[368036815,1751001059081,-151.0,0.0002199,7]
[368036816,1751001059090,-198.0,0.0002199,7]
[368036817,1751001059099,-151.0,0.0002199,7]
[368036818,1751001059109,-281.616202,0.0002199,7]
[368036819,1751001059118,-151.0,0.0002199,7]
[368036820,1751001059127,-151.0,0.0002199,7]
[368036821,1751001059136,-179.946367,0.0002199,7]
[368036822,1751001059146,-151.0,0.0002199,7]
[368036823,1751001059155,-252.296287,0.0002199,7]
[368036824,1751001059164,-151.0,0.0002199,7]
[368036825,1751001059174,-151.0,0.0002199,7]
[368036826,1751001059184,-151.0,0.0002199,7]
[368036827,1751001059193,-206.173734,0.0002199,7]
[368036828,1751001059203,-206.173734,0.0002199,7]
[368036829,1751001059212,-200.0,0.00021999,2]
[368036830,1751001059221,-12972.42341348,0.00022,2]
[368036831,1751001059231,-13121.48237691,0.00022,2]
[368036832,1751001059240,-232720.85098169,0.00022,2]
[368036833,1751001059647,-500.0,0.00019233,2]
[368036834,1751001059656,-92.73,0.00019233,2]
[368036835,1751001059978,-460.0,0.00019178,2]
[368036836,1751001059987,-460.0,0.00019178,2]
[368036837,1751001059997,-58.27,0.00019233,2]
[368036838,1751001060006,-204.38876376,0.00019233,2]
[368036839,1751001060016,-501.85992699,0.0001926,2]
[368036840,1751001060025,-151.0,0.0001926,2]
[368036841,1751001060034,-198.0,0.00019288,2]
[368036842,1751001060044,-151.0,0.00019397,2]
[368036843,1751001060054,-460.0,0.00019452,2]
[368036844,1751001060064,-460.0,0.00019452,2]
[368036845,1751001060074,-572.19899527,0.00019726,2]
[368036846,1751001060083,-460.0,0.00019726,2]
[368036847,1751001060092,-460.0,0.0002,2]
[368036848,1751001060102,-460.0,0.00020547,2]
[368036849,1751001060111,-460.0,0.00020821,2]
[368036850,1751001060121,-460.0,0.00021095,2]
[368036851,1751001060130,-470.26,0.00021095,2]
[368036852,1751001060139,-460.0,0.00021369,2]
[368036853,1751001060149,-460.0,0.00021643,2]
[368036854,1751001060158,-460.0,0.00021917,2]
[368036855,1751001060167,-151.0,0.00021918,2]
[368036856,1751001060177,-151.0,0.00021918,2]
[368036857,1751001060186,-151.0,0.00021918,2]
[368036858,1751001060196,-151.0,0.00021918,2]
[368036859,1751001060206,-177.4788171,0.00021945,2]
[368036860,1751001060215,-575.118961,0.00021945,2]
[368036861,1751001060225,-151.0,0.00021947,7]
[368036862,1751001060235,-480141.96393095,0.00022,2]
[368036863,1751001060244,-351.72559252,0.00022,2]
[368036864,1751001060253,-548.93598729,0.00022,2]
[368036865,1751001060262,-161.37138456,0.00022,2]
[368036866,1751001060271,-87503.52776582,0.00022,2]
[368036867,1751001060283,-3785.86014099,0.00022,2]
[368036877,1751001325647,187.5580533,0.000222,69]
[368036881,1751001724175,160.63345,0.00013699,2]
[368036882,1751001907106,-184.95859919,0.00019068,2]
[368036885,1751001924376,162.04140081,0.00019068,2]
[368036886,1751001959163,-549.181948,0.00019078,2]
[368036887,1751002049131,-177.59180139,0.00019078,2]
[368036888,1751002049152,-236.40819861,0.00019078,2]
[368036890,1751002107236,-163.27575699,0.00018917,2]
[368036891,1751002107259,-189.72424301,0.00018978,2]
[368036945,1751002231825,-255.71818998,0.000188,2]
[368036947,1751002231834,-1200.0,0.00018899,2]
[368036949,1751002231843,-300.0,0.00018899,2]
[368036951,1751002231853,-2239.70956162,0.000189,2]
[368036953,1751002231862,-1496.32864725,0.000189,2]
[368036956,1751002231883,-743.38091437,0.000189,2]
[368036959,1751002231892,-382.98378981,0.00019078,2]
[368036962,1751002231901,-300.0,0.00019167,2]
[368036964,1751002231910,-185.21,0.00019168,3]
[368036968,1751002231920,-500.02243192,0.00019173,2]
[368036971,1751002231930,-500.81019278,0.00019173,2]
[368036974,1751002231940,-285.78313838,0.00019173,2]
[368036976,1751002231949,-501.15283848,0.00019173,2]
[368036978,1751002231964,-981.72583137,0.00019177,2]
[368036980,1751002231973,-600.0,0.00019177,2]
[368036982,1751002231982,-460.0,0.00019178,2]
[368036984,1751002231991,-460.0,0.00019178,2]
[368036986,1751002232001,-272.79202699,0.00019178,2]
[368036988,1751002232011,-460.0,0.00019178,2]
[368036990,1751002232020,-460.0,0.00019178,2]
[368036992,1751002232030,-502.12485238,0.00019178,2]
[368036994,1751002232039,-16.60472483,0.00019178,2]
[368037000,1751002232059,-377.22042927,0.00019178,2]
[368037003,1751002232068,-461.63382994,0.00019178,2]
[368037006,1751002232077,-460.7442407,0.00019178,2]
[368037009,1751002232087,-441.39793937,0.00019178,2]
[368037011,1751002232096,-460.0,0.00019178,2]
[368037013,1751002232105,-93.61581448,0.00019178,2]
[368037015,1751002232120,-246.79263229,0.00019178,2]
[368037017,1751002232129,-21.09717263,0.00019178,2]
[368037210,1751002237859,-555.68,0.00019168,3]
[368037211,1751002237869,-439.87600976,0.00019178,2]